[Event "Indian Rapid Championship 2023-24"]
[Site "Nashik"]
[Date "2024.03.04"]
[Round "1.5"]
[White "Bhogal, Rupesh"]
[Black "Aronyak Ghosh"]
[Result "0-1"]
[ECO "B12"]
[WhiteElo "1705"]
[BlackElo "2517"]
[Annotator "TA"]
[PlyCount "60"]
[EventDate "2024.03.02"]
[EventType "swiss"]
[EventCountry "IND"]
[SourceTitle "playchess.com"]
[Source "ChessBase"]
[SourceQuality "1"]
[TimeControl "900+10"]

{[%evp 9,60,-19,-22,-31,-24,-23,0,-85,-90,-115,-105,-115,-104,-112,-112,-115,-114,-124,-119,-137,-129,-123,-122,-209,-111,-125,-126,-193,-137,-189,-167,-214,-222,-235,-225,-420,-377,-345,-366,-352,-370,-356,-354,-382,-285,-274,-265,-271,-261,-297,-294,-764,-759]} 1. e4 {[%emt 0:00:07]} c6 {[%emt 0:00:03]} 2. d4 {[%emt 0:00:01]} d5 {[%emt 0:00:02]} 3. f3 {[%emt 0:00:07]} g6 {[%emt 0:00:48]} 4. e5 {[%emt 0:00:26]} Bg7 {[%emt 0:00:12]} 5. Bd3 {[%emt 0:00:06] [#]} c5 $1 {[%emt 0:00:34]} 6. c3 {[%emt 0:00:02]} Nc6 {[%emt 0:00:04]} 7. Ne2 {[%emt 0:00:19]} Qb6 {[%emt 0:01:49]} 8. O-O {[%emt 0:01:04]} (8. Qb3 $11 {keeps the balance.}) 8... cxd4 $17 {[%emt 0:00:43]} 9. cxd4 {[%emt 0:02:16]} Nxe5 {[%emt 0:00:42]} (9... Bxe5 10. Kh1 Bg7 (10... Bxd4 11. Nbc3 $15) (10... Nxd4 11. Be3 $16) 11. Nbc3) (9... Nxd4 $6 10. Be3 Nxe2+ 11. Qxe2 $11) 10. Bc2 {[%emt 0:00:24]} Nc6 {[%emt 0:01:04] Black is more active.} 11. Be3 {[%emt 0:01:18]} Nf6 {[%emt 0:00:37]} 12. Nbc3 {[%emt 0:00:11]} O-O {[%emt 0:00:23]} 13. Qd2 {[%emt 0:01:08]} Bd7 {[%emt 0:00:44]} 14. Nf4 {[%emt 0:02:34]} e6 {[%emt 0:00:31][%cal Of8c8]} 15. Nd3 {[%emt 0:02:21]} Rfc8 {[%emt 0:00:25][%cal Of6e8]} (15... Nxd4 16. Ne5 $16) 16. Ne5 {[%emt 0:00:10]} (16. Nc5 $17 {keeps fighting.}) 16... Qd8 {[%emt 0:01:34]} (16... Qxb2 $19 17. Rab1 (17. Nxf7 $2 Nb4 $19) 17... Qa3) 17. Bg5 {[%emt 0:00:29]} Be8 {[%emt 0:00:36]} 18. Ng4 {[%emt 0:00:38] [#]} (18. Rab1 $17 {was necessary.}) 18... h5 {[%emt 0:00:51]} (18... Nxd4 $1 $19 {[%cal Od8b6] Strongly threatening ...Qb6!} 19. Bd3 (19. Qxd4 $2 {too greedy.} Nxg4 20. Qxg4 Qb6+ 21. Kh1 Qxb2 $19) 19... Qb6 20. Nxf6+ Bxf6) 19. Ne5 {[%emt 0:00:36]} (19. Nxf6+ $17 Bxf6 20. Bxf6 Qxf6 21. Ne2) 19... Qb6 {[%emt 0:00:40]} 20. Be3 {[%emt 0:01:21]} (20. Nxc6 $142 Bxc6 (20... Rxc6 21. Rab1 $17) 21. a4) 20... Qxb2 $19 {[%emt 0:01:00]} 21. Rab1 {[%emt 0:01:01]} Qa3 {[%emt 0:00:04]} 22. Rxb7 $2 {[%emt 0:00:24]} (22. Nxc6 Rxc6 23. Rb3) 22... Nxe5 {[%emt 0:00:40]} 23. Rb3 {[%emt 0:00:26]} Nc4 {[%emt 0:00:29]} 24. Rxa3 {[%emt 0:01:01]} Nxd2 {[%emt 0:00:03]} 25. Bxd2 {[%emt 0:00:02]} Nd7 {[%emt 0:00:01]} 26. Be3 {[%emt 0:00:20]} Nb6 {[%emt 0:00:02] Hoping for ...Nc4.} 27. Bd3 {[%emt 0:00:09]} Nc4 {[%emt 0:00:33]} 28. Bxc4 {[%emt 0:00:03]} Rxc4 {[%emt 0:00:02]} 29. Ne2 {[%emt 0:00:13]} Rc2 {[%emt 0:00:15]} 30. Rc1 $2 {[%emt 0:00:09]} (30. Nc1) 30... Rxe2 {[%emt 0:00:10] Weighted Error Value: White=0.50/Black=0.16 (very precise) .  Mistake:       	White=7     	Black=2      OK:         	White=6     	Black=14     Best:        	White=2     	Black=3} 0-1

[Event "Indian Rapid Championship 2023-24"]
[Site "Nashik"]
[Date "2024.03.04"]
[Round "1.6"]
[White "Prraneeth Vuppala"]
[Black "Jagesia Daksh"]
[Result "1-0"]
[ECO "A06"]
[WhiteElo "2506"]
[BlackElo "1718"]
[Annotator "TA"]
[PlyCount "73"]
[EventDate "2024.03.02"]
[EventType "swiss"]
[EventCountry "IND"]
[SourceTitle "playchess.com"]
[Source "ChessBase"]
[SourceQuality "1"]
[TimeControl "900+10"]

{[%evp 9,73,0,31,20,22,25,32,21,20,31,77,81,81,79,95,64,71,27,22,0,45,43,143,151,270,205,202,208,199,205,224,222,225,225,227,238,304,306,361,358,412,415,407,402,462,460,448,450,462,447,459,414,405,416,484,477,539,542,807,805,924,912,1432,1122,1293,1135]} 1. Nf3 {[%emt 0:00:04]} c5 {[%emt 0:00:01]} 2. e3 {[%emt 0:00:10]} d5 {[%emt 0:00:02]} 3. b3 {[%emt 0:00:04]} Nf6 {[%emt 0:00:03]} 4. Bb2 {[%emt 0:00:01]} Nbd7 {[%emt 0:00:01]} 5. Be2 {[%emt 0:00:08]} Qc7 {[%emt 0:00:03]} 6. d4 {[%emt 0:00:20]} e6 {[%emt 0:00:03][%cal Be7e6,Be6d5][%mdl 32]} 7. O-O {[%emt 0:00:30]} b6 {[%emt 0:00:29]} 8. c4 {[%emt 0:00:14] White is slightly better.} Bb7 {[%emt 0:00:00]} 9. Nc3 {[%emt 0:00:01]} a6 {[%emt 0:00:01]} (9... Be7 $14 {is superior.}) 10. cxd5 $16 {[%emt 0:00:37]} exd5 {[%emt 0:00:05]} 11. Rc1 {[%emt 0:00:44]} Bd6 {[%emt 0:00:03]} 12. h3 {[%emt 0:00:11]} Rc8 {[%emt 0:00:04]} 13. dxc5 {[%emt 0:00:04]} bxc5 {[%emt 0:00:29]} 14. Nh4 {[%emt 0:01:26]} O-O {[%emt 0:00:22]} 15. Nf5 {[%emt 0:00:30]} Nb6 {[%emt 0:00:25] [#] Black is on the road to losing.} (15... Rfe8 $14) 16. Na4 $1 {[%emt 0:02:37] aiming for Bxf6. White is more active.} (16. Nxd6 Qxd6 17. Re1 Nbd7 $16) 16... Ne8 {[%emt 0:02:32]} (16... Nbd7 $16 {was called for.} 17. Bg4 h5) 17. Nxb6 {[%emt 0:02:03]} Qxb6 {[%emt 0:00:09]} 18. Bf3 {[%emt 0:00:16]} Rd8 {[%emt 0:01:19]} 19. Qc2 {[%emt 0:00:39]} ({Stronger than} 19. Bxd5 Bxd5 20. Qxd5 Bh2+ 21. Kxh2 Rxd5 $11) 19... f6 {[%emt 0:01:45]} 20. Nxd6 {[%emt 0:01:02]} Nxd6 {[%emt 0:00:04][%cal Be8d6,Bd6e4,Be4g5][%mdl 32]} 21. Qxc5 {[%emt 0:00:05]} Qxc5 {[%emt 0:00:10]} 22. Rxc5 {[%emt 0:00:03]} Ne4 {[%emt 0:00:02]} 23. Rc7 {[%emt 0:00:15]} Ba8 {[%emt 0:00:01]} 24. Rfc1 {[%emt 0:00:08][%cal Bf1c1,Bc1c7,Bc7a7][%mdl 32]} Rf7 {[%emt 0:00:26]} 25. Rxf7 {[%emt 0:00:32]} Kxf7 {[%emt 0:00:03][%cal Bg8f7,Bf7g6,Bg6h6,Bh6g7][%mdl 32]} 26. Rc7+ {[%emt 0:00:02]} Kg6 {[%emt 0:00:14]} 27. Bd4 {[%emt 0:00:26]} Ng5 {[%emt 0:00:42]} 28. Be2 {[%emt 0:00:12]} Ne6 {[%emt 0:00:02]} 29. Bd3+ {[%emt 0:00:07] A strong pair of Bishops.} Kh6 {[%emt 0:00:15]} 30. Ra7 {[%emt 0:00:16]} Nxd4 {[%emt 0:00:15]} 31. exd4 $18 {[%emt 0:00:02][%mdl 4096] Endgame. KRB-KRB} Re8 {[%emt 0:00:12]} 32. Kh2 {[%emt 0:00:15] White is clearly winning.} ({Not} 32. Rxa6 Bb7 $18) ({Much less strong is} 32. Bxa6 Re1+ 33. Kh2 Bc6 $18) 32... g6 {[%emt 0:00:43]} 33. Rxa6 {[%emt 0:00:06]} Kg7 {[%emt 0:00:04]} 34. Ra7+ {[%emt 0:00:09]} Kh6 {[%emt 0:00:03]} 35. b4 {[%emt 0:00:05][%cal Bb3b4,Bb4b5][%mdl 32]} Rb8 {[%emt 0:00:14]} 36. b5 {[%emt 0:00:04]} Bb7 {[%emt 0:00:03]} 37. a4 {[%emt 0:00:06] Weighted Error Value: White=0.09 (flawless) /Black=0.37.  Mistake:       	---       	Black=3      Inaccurate:     	White=2     	Black=2      OK:         	White=16    	Black=4      Strong:       	White=1     	---} 1-0

[Event "Indian Rapid Championship 2023-24"]
[Site "Nashik"]
[Date "2024.03.04"]
[Round "1.7"]
[White "Sahil Bheron"]
[Black "Raja Rithvik R"]
[Result "0-1"]
[ECO "D05"]
[WhiteElo "1774"]
[BlackElo "2532"]
[Annotator "TA"]
[PlyCount "64"]
[EventDate "2024.03.02"]
[EventType "swiss"]
[EventCountry "IND"]
[SourceTitle "playchess.com"]
[Source "ChessBase"]
[SourceQuality "1"]
[TimeControl "900+10"]

{[%evp 18,64,0,0,0,-14,0,-2,0,0,-7,-18,0,0,0,-51,-45,-78,-71,-60,-59,-58,-70,-60,-24,-332,-321,-361,-326,-397,-353,-359,-331,-420,-417,-498,-504,-483,-481,-869,-869,-29954,-29953,-5660,-5648,-29991,-29990,-29996,-29997]} 1. d4 {[%emt 0:00:03]} Nf6 {[%emt 0:00:14]} 2. Nf3 {[%emt 0:00:11]} d5 {[%emt 0:00:08]} 3. e3 {[%emt 0:00:02]} e6 {[%emt 0:01:08]} 4. Bd3 {[%emt 0:00:07]} Bd6 {[%emt 0:00:08]} 5. O-O {[%emt 0:00:10]} O-O {[%emt 0:00:03]} 6. b3 {[%emt 0:00:01]} b6 {[%emt 0:00:07]} 7. Bb2 {[%emt 0:00:01]} Bb7 {[%emt 0:00:01]} 8. Ne5 {[%emt 0:00:10]} Nbd7 {[%emt 0:00:34]} 9. f4 {[%emt 0:00:01]} Ne4 {[%emt 0:00:27]} 10. Nd2 {[%emt 0:00:27]} Ndf6 {[%emt 0:00:30]} 11. Rc1 {[%emt 0:02:46]} c5 {[%emt 0:02:08]} 12. Ndf3 {[%emt 0:00:59]} cxd4 {[%emt 0:01:04] The position is equal.} 13. exd4 {[%emt 0:00:22]} Qe7 {[%emt 0:00:48]} 14. c4 {[%emt 0:03:01]} Rac8 {[%emt 0:01:00]} 15. Rc2 {[%emt 0:01:34]} g6 {[%emt 0:02:27]} 16. g4 {[%emt 0:01:34]} (16. g3 $11) 16... Ne8 $15 {[%emt 0:02:18] Hoping for ...f6.} 17. cxd5 {[%emt 0:04:07] Rxc8 would now be deadly.} exd5 {[%emt 0:01:01] White must now prevent ...f6.} 18. Rxc8 {[%emt 0:00:53]} Bxc8 {[%emt 0:00:01]} 19. Qc2 {[%emt 0:01:12][%csl LRc8,LRe4]} Ng7 {[%emt 0:00:52]} 20. Bxe4 {[%emt 0:00:24]} dxe4 {[%emt 0:00:01]} 21. Qxe4 {[%emt 0:00:04][%mdl 8192] [#] This move loses the game for White.} (21. Ng5 $1 $11 {and White is okay.}) 21... f6 $1 $19 {[%emt 0:00:13]} 22. h3 {[%emt 0:00:21]} Bb7 {[%emt 0:01:59] Dodges Qd5+} 23. d5 {[%emt 0:00:04]} Rd8 {[%emt 0:00:01]} 24. Rd1 {[%emt 0:00:02]} Ne8 {[%emt 0:01:20]} 25. Qc4 {[%emt 0:00:25]} fxe5 {[%emt 0:00:30]} 26. fxe5 {[%emt 0:00:04]} Bc5+ {[%emt 0:00:01]} 27. Kg2 {[%emt 0:00:03] [#]} b5 $1 {[%emt 0:00:30]} 28. Qe4 {[%emt 0:00:29]} (28. Qe2 $142) (28. Qc3 Bxd5) 28... Nf6 {[%emt 0:00:00]} 29. Qf4 {[%emt 0:00:11]} Nxd5 {[%emt 0:00:00]} 30. Rxd5 {[%emt 0:00:08]} Bxd5 {[%emt 0:00:00] This pair of bishops is nice.} 31. e6 {[%emt 0:00:01]} Qxe6 {[%emt 0:00:07]} 32. Qh6 {[%emt 0:00:15]} Qe2+ {[%emt 0:00:07] Weighted Error Value: White=1.10/Black=0.08 (flawless) .  Loses game:     	White=1     	---        Mistake:       	White=2     	---        Inaccurate:     	White=2     	Black=1      OK:         	White=3     	Black=5      Best:        	White=1     	---        Strong:       	---       	Black=1} 0-1

[Event "Indian Rapid Championship 2023-24"]
[Site "Nashik"]
[Date "2024.03.04"]
[Round "1.8"]
[White "Moksh Amit Doshi"]
[Black "Sagar Siya"]
[Result "1-0"]
[ECO "A16"]
[WhiteElo "2353"]
[BlackElo "1819"]
[Annotator "TA"]
[PlyCount "49"]
[EventDate "2024.03.02"]
[EventType "swiss"]
[EventCountry "IND"]
[SourceTitle "playchess.com"]
[Source "ChessBase"]
[SourceQuality "1"]
[TimeControl "900+10"]

{[%evp 9,49,19,97,37,36,35,45,25,38,31,42,39,36,17,25,20,52,56,66,33,56,17,63,71,437,422,580,505,604,606,598,587,590,569,620,622,675,570,574,576,931,929]} 1. Nf3 {[%emt 0:00:09]} Nf6 {[%emt 0:00:03]} 2. c4 {[%emt 0:00:12]} g6 {[%emt 0:00:06]} 3. Nc3 {[%emt 0:00:15]} d5 {[%emt 0:00:07]} 4. cxd5 {[%emt 0:00:59]} Nxd5 {[%emt 0:00:05]} 5. Qb3 {[%emt 0:00:07]} Nxc3 {[%emt 0:00:35]} (5... Nb6 $1 $11) 6. dxc3 {[%emt 0:00:53]} (6. Qxc3 $16 Rg8 7. e4) 6... Bg7 {[%emt 0:00:19]} 7. e4 {[%emt 0:00:03]} O-O {[%emt 0:00:20]} 8. Be2 {[%emt 0:00:02] White is slightly better.} Nc6 {[%emt 0:00:08]} 9. O-O {[%emt 0:00:05]} Na5 {[%emt 0:00:56]} 10. Qa4 {[%emt 0:00:10][%cal Of1d1] [#] And now Rd1! would win.} c5 {[%emt 0:00:12]} 11. Be3 {[%emt 0:00:59]} Qc7 {[%emt 0:00:28]} 12. Rfd1 {[%emt 0:00:39]} Be6 {[%emt 0:00:44]} 13. Ng5 {[%emt 0:00:26] Strongly threatening Nxe6.} Bc8 {[%emt 0:00:35]} 14. Rac1 {[%emt 0:00:30] White has more active pieces.} h6 {[%emt 0:01:12]} 15. Nf3 $36 {[%emt 0:00:02][%mdl 2048] White is pushing.} a6 {[%emt 0:00:02]} (15... b6 $11 {should be considered.}) 16. b4 $14 {[%emt 0:00:11]} b5 $2 {[%emt 0:00:03][%mdl 8192] [#] This move loses the game for Black.} (16... Nc6 $16) 17. Qxa5 $18 {[%emt 0:00:08] White is clearly winning.} Qb7 {[%emt 0:00:22]} 18. Bxc5 {[%emt 0:00:21]} Be6 {[%emt 0:00:04]} 19. Nd4 {[%emt 0:00:10]} Bc4 {[%emt 0:00:23]} 20. Bxc4 {[%emt 0:00:04]} bxc4 {[%emt 0:00:03]} 21. f3 {[%emt 0:00:22]} Rfd8 {[%emt 0:00:09]} 22. Qb6 {[%emt 0:00:06]} Qd7 {[%emt 0:00:26]} 23. Re1 {[%emt 0:00:56]} Rdb8 {[%emt 0:00:29]} 24. Qa5 {[%emt 0:00:06]} Rb5 {[%emt 0:00:04]} 25. Nxb5 {[%emt 0:00:06] Weighted Error Value: White=0.24 (precise) /Black=0.68.  Loses game:     	---       	Black=1      Mistake:       	---       	Black=1      Inaccurate:     	White=2     	Black=3      OK:         	White=7     	Black=4      Best:        	White=1     	---} 1-0

[Event "Indian Rapid Championship 2023-24"]
[Site "Nashik"]
[Date "2024.03.04"]
[Round "1.9"]
[White "Swara Lakshmi S Nair"]
[Black "Sriram, Jha"]
[Result "0-1"]
[ECO "B07"]
[WhiteElo "1863"]
[BlackElo "2312"]
[Annotator "TA"]
[PlyCount "106"]
[EventDate "2024.03.02"]
[EventType "swiss"]
[EventCountry "IND"]
[SourceTitle "playchess.com"]
[Source "ChessBase"]
[SourceQuality "1"]
[TimeControl "900+10"]

{[%evp 9,106,45,52,31,44,29,43,-8,3,5,6,25,21,-15,20,-93,-71,-78,-104,-100,-88,-96,-24,-114,-67,-79,-4,-20,-12,-13,0,0,0,0,0,0,0,-2,24,29,26,41,100,25,35,20,33,20,20,18,22,8,14,0,0,0,0,0,129,96,123,98,127,129,176,162,183,-86,-68,-170,-170,-170,-169,-186,-186,-186,-186,-413,-254,-403,-212,-785,-737,-1011,-888,-29968,-29969,-29968,-29970,-29967,-29970,-29970,-29968,-29967,-29970,-29970,-29971,-5691,-5251]} 1. e4 {[%emt 0:00:02]} d6 {[%emt 0:00:06]} 2. d4 {[%emt 0:00:02]} Nf6 {[%emt 0:00:02]} 3. Nc3 {[%emt 0:00:03]} c6 {[%emt 0:00:01]} 4. Be3 {[%emt 0:00:47]} Qa5 {[%emt 0:00:09]} 5. f3 {[%emt 0:01:38]} e5 {[%emt 0:00:14]} 6. Qd2 {[%emt 0:00:43]} Be7 {[%emt 0:00:02]} 7. Nge2 {[%emt 0:00:14]} O-O {[%emt 0:00:51]} 8. Nc1 {[%emt 0:01:01]} (8. g4 $14) 8... b5 {[%emt 0:00:31]} 9. Nb3 {[%emt 0:01:22]} Qc7 {[%emt 0:00:04]} 10. a3 {[%emt 0:01:08]} a6 {[%emt 0:01:15]} 11. Be2 {[%emt 0:00:41]} c5 {[%emt 0:01:52]} 12. dxe5 {[%emt 0:02:03]} (12. d5 $11) 12... dxe5 $17 {[%emt 0:00:01] Strongly threatening ...c4.} 13. O-O {[%emt 0:01:57]} c4 {[%emt 0:01:25][%cal Of8d8] [#] White must now prevent ...Rd8!} 14. Nc1 {[%emt 0:00:26][%cal Bb3c1,Bc1a2,Ba2b4][%mdl 32]} Rd8 {[%emt 0:01:09]} 15. Qe1 {[%emt 0:00:12]} Bc5 {[%emt 0:00:08]} ({Better is} 15... Nc6 $17 16. Rf2 Be6) 16. Qf2 {[%emt 0:00:56]} (16. Bxc5 $11 {remains equal.} Qxc5+ 17. Rf2) 16... Bd4 {[%emt 0:00:59] Black is more active.} (16... Bxe3 $17 17. Qxe3 Nc6) 17. N1a2 $15 {[%emt 0:00:42]} Qa7 {[%emt 0:02:44]} (17... Bxe3 $17 18. Qxe3 Nc6) 18. Nd1 {[%emt 0:00:39][%cal Bc3d1,Bd1e3,Be3f1][%mdl 32]} Nc6 {[%emt 0:00:08]} 19. Nb4 {[%emt 0:00:35]} Bb7 {[%emt 0:00:48]} 20. c3 {[%emt 0:01:21]} Bxe3 {[%emt 0:00:02]} 21. Nxe3 {[%emt 0:00:03]} Nxb4 {[%emt 0:00:49]} 22. axb4 {[%emt 0:00:12]} Rd2 {[%emt 0:00:01]} 23. Rfb1 {[%emt 0:01:07]} Rad8 {[%emt 0:00:24]} 24. Nf1 {[%emt 0:00:13][%csl LRa7,LRd2]} Qxf2+ {[%emt 0:00:08]} 25. Kxf2 {[%emt 0:00:02]} R2d7 {[%emt 0:00:29] [#]} (25... R2d6 $1 $14) 26. Rd1 {[%emt 0:00:26]} (26. b3 $1 $16 {[%cal Rb3c4]}) 26... Kf8 {[%emt 0:00:14]} 27. Rxd7 {[%emt 0:00:13]} Nxd7 {[%emt 0:00:23]} 28. Rd1 {[%emt 0:00:06]} Ke7 {[%emt 0:00:17]} 29. Ne3 {[%emt 0:00:05]} g6 {[%emt 0:00:02]} 30. Rd2 {[%emt 0:00:27]} Ra8 {[%emt 0:00:42]} 31. Bd1 {[%emt 0:00:31]} Nb6 {[%emt 0:00:19]} 32. b3 {[%emt 0:00:06]} Rc8 {[%emt 0:02:50]} 33. bxc4 {[%emt 0:00:05]} bxc4 {[%emt 0:00:35]} (33... Nxc4 $11 34. Rc2 Nxe3 35. Kxe3 f5) 34. Be2 {[%emt 0:00:09]} f6 {[%emt 0:00:22]} 35. g3 {[%emt 0:00:04]} Rc7 {[%emt 0:00:01]} 36. Ra2 {[%emt 0:00:08]} Ke6 {[%emt 0:00:15]} (36... h5 $16 {might work better.} 37. h4 Ke8) 37. Ra5 $18 {[%emt 0:00:04]} Kd6 {[%emt 0:00:14]} 38. b5 $2 {[%emt 0:00:36]} (38. h4 $18) 38... Rc5 $17 {[%emt 0:00:06]} 39. bxa6 {[%emt 0:00:07]} ({Much worse is} 39. Ng4 axb5 (39... Rxb5 40. Ra2 $15) 40. Ke1 Ke7 $17) ({White should try} 39. h4 $15) 39... Rxa5 $19 {[%emt 0:00:04]} 40. axb7 {[%emt 0:00:02]} Kc7 {[%emt 0:00:00]} 41. Nxc4 {[%emt 0:00:16]} Nxc4 {[%emt 0:00:04]} 42. Bxc4 {[%emt 0:00:01]} Kxb7 {[%emt 0:00:30][%mdl 4096] Endgame. KR-KB} 43. g4 $2 {[%emt 0:00:01]} (43. Bg8 {was necessary.}) 43... Kb6 {[%emt 0:00:19]} 44. Bd5 {[%emt 0:00:01]} (44. Bg8 {keeps fighting.} Ra7 45. Ke2) 44... Kc5 {[%emt 0:00:03]} (44... Ra3 $142 {[%cal Og6g5] Hoping for ...g5!} 45. Bg8 h6 (45... Rxc3 $2 46. Bxh7 g5 47. Bf5 $17)) 45. Kg3 $2 {[%emt 0:00:15]} (45. h4) 45... g5 {[%emt 0:00:16]} 46. h4 {[%emt 0:00:01]} Ra3 {[%emt 0:00:07]} 47. hxg5 {[%emt 0:00:02]} fxg5 {[%emt 0:00:01]} (47... Rxc3 $2 {too greedy.} 48. gxf6 Kd6 49. g5 $16) 48. c4 {[%emt 0:00:02]} Ra2 {[%emt 0:00:07]} 49. Bg8 {[%emt 0:00:03]} h6 {[%emt 0:00:01]} 50. Bd5 {[%emt 0:00:05]} Rc2 {[%emt 0:00:05]} 51. Bf7 {[%emt 0:00:00]} Kd4 {[%emt 0:00:02]} 52. Bd5 {[%emt 0:00:01]} Ke3 {[%emt 0:00:04]} 53. Be6 {[%emt 0:00:01]} Rf2 {[%emt 0:00:17] Weighted Error Value: White=0.67/Black=0.26 (precise) .  Missed win:     	White=1     	---        Mistake:       	White=8     	Black=7      Inaccurate:     	White=2     	Black=3      OK:         	White=11    	Black=10     Best:        	White=1     	Black=3} 0-1

[Event "Indian Rapid Championship 2023-24"]
[Site "Nashik"]
[Date "2024.03.04"]
[Round "1.10"]
[White "Neelotpal, Das"]
[Black "Srikara Darbha"]
[Result "1-0"]
[ECO "E60"]
[WhiteElo "2355"]
[BlackElo "1608"]
[Annotator "TA"]
[PlyCount "51"]
[EventDate "2024.03.02"]
[EventType "swiss"]
[EventCountry "IND"]
[SourceTitle "playchess.com"]
[Source "ChessBase"]
[SourceQuality "1"]
[TimeControl "900+10"]

{[%evp 9,51,22,26,30,35,0,6,6,5,4,0,12,0,-35,17,-56,-61,-52,-60,-66,-60,-65,-63,-83,-67,-65,54,-25,24,44,38,44,80,43,46,28,499,485,494,491,1316,1252,1217,462]} 1. d4 {[%emt 0:00:03]} Nf6 {[%emt 0:00:02]} 2. c4 {[%emt 0:00:03]} g6 {[%emt 0:00:03]} 3. h4 {[%emt 0:00:02]} Bg7 {[%emt 0:00:33]} 4. Nc3 {[%emt 0:00:02]} d6 {[%emt 0:00:40]} 5. e4 {[%emt 0:00:02]} Nc6 {[%emt 0:00:23]} 6. Nge2 {[%emt 0:00:30]} O-O {[%emt 0:00:33]} 7. Ng3 {[%emt 0:00:34]} h5 {[%emt 0:00:50]} 8. Bg5 {[%emt 0:00:25] The position is equal.} Nh7 {[%emt 0:00:54][%cal Oh7g5]} 9. Be3 {[%emt 0:00:07]} e5 {[%emt 0:00:06]} 10. d5 {[%emt 0:00:20]} Nd4 {[%emt 0:00:05]} 11. Qd2 {[%emt 0:00:14]} Bf6 {[%emt 0:00:18]} ({Better is} 11... c5 $15) 12. O-O-O {[%emt 0:00:25]} (12. Nge2 $11) 12... c5 $15 {[%emt 0:01:20]} 13. dxc6 {[%emt 0:01:30]} bxc6 {[%emt 0:00:10]} 14. Nge2 {[%emt 0:00:01][%cal Re2d4]} c5 {[%emt 0:01:17]} 15. Nd5 {[%emt 0:00:02]} Bxh4 {[%emt 0:00:39]} 16. Nec3 {[%emt 0:01:09]} Be6 {[%emt 0:02:47]} 17. Be2 {[%emt 0:00:03]} Be7 {[%emt 0:02:23]} (17... Bg5 $15 18. g3 Bxe3 19. Nxe3 Qg5) 18. Kb1 {[%emt 0:03:48]} (18. Bxh5 $1 $14 gxh5 19. Rxh5) 18... f5 {[%emt 0:00:36]} (18... Bg5 $142) 19. exf5 $11 {[%emt 0:00:02]} Bxf5+ {[%emt 0:00:12]} 20. Bd3 {[%emt 0:00:04] [#] Bxf5 is the strong threat.} Qd7 {[%emt 0:00:44]} 21. f3 {[%emt 0:00:57] White is more active.} Rf7 {[%emt 0:00:21]} 22. Ne4 {[%emt 0:03:33] Strongly threatening Bxd4.} Bf8 $2 {[%emt 0:00:39][%mdl 8192] This costs Black the game.} (22... Be6 $1 $11 {and Black is okay.}) 23. Bxd4 $18 {[%emt 0:00:15] White is clearly winning.} exd4 {[%emt 0:00:25]} 24. g4 {[%emt 0:00:07]} hxg4 {[%emt 0:00:21] [#]} (24... Bxe4 $142 25. Bxe4 Bg7 26. Bxg6 (26. gxh5 g5 $18) 26... Nf6) 25. Rxh7 $1 {[%emt 0:00:31][%mdl 512]} Bxe4 {[%emt 0:00:24]} (25... Bg7 26. Rxg7+) 26. Nf6+ {[%emt 0:00:01] Weighted Error Value: White=0.18 (very precise) /Black=0.46.  Loses game:     	---       	Black=1      Mistake:       	White=2     	Black=4      Inaccurate:     	White=3     	---        OK:         	White=8     	Black=8      Best:        	White=2     	---        Brilliant:      	White=1     	---} 1-0